[Event "Titled Tuesday Blitz April 4 Late 2023"]
[White "Somalianwarrior2006"]
[Black "Drori, Saar"]
[BlackFideId "2812444"]
[WhiteElo "2865"]
[BlackElo "2322"]
[Result "1/2-1/2"]
[Round "04"]
[TimeControl "180+2"]
[Date "2023.04.04"]
[WhiteClock "0:00:12"]
[BlackClock "0:00:07"]

1. e4 {[%clk 0:03:00]}  c5 {[%clk 0:03:00]} 2. Nf3 {[%clk 0:03:01]}  d6 {[%clk 0:03:01]} 3. d4 {[%clk 0:03:01]}  cxd4 {[%clk 0:03:01]} 4. Nxd4 {[%clk 0:03:02]}  Nf6 {[%clk 0:03:02]} 5. Nc3 {[%clk 0:03:02]}  a6 {[%clk 0:03:03]} 6. Bc4 {[%clk 0:03:01]}  e6 {[%clk 0:03:02]} 7. Bb3 {[%clk 0:03:02]}  Nc6 {[%clk 0:03:03]} 8. f4 {[%clk 0:03:01]}  Na5 {[%clk 0:03:01]} 9. f5 {[%clk 0:03:00]}  Nxb3 {[%clk 0:02:56]} 10. axb3 {[%clk 0:03:01]}  Be7 {[%clk 0:02:56]} 11. O-O {[%clk 0:03:01]}  O-O {[%clk 0:02:55]} 12. Be3 {[%clk 0:02:58]}  Bd7 {[%clk 0:02:53]} 13. Qd3 {[%clk 0:02:48]}  Rc8 {[%clk 0:02:51]} 14. Rad1 {[%clk 0:02:47]}  Qc7 {[%clk 0:02:49]} 15. Kh1 {[%clk 0:02:29]}  b5 {[%clk 0:02:34]} 16. b4 {[%clk 0:02:17]}  Qc4 {[%clk 0:01:55]} 17. Qxc4 {[%clk 0:02:01]}  Rxc4 {[%clk 0:01:56]} 18. Ra1 {[%clk 0:01:41]}  Bc8 {[%clk 0:01:31]} 19. Bg1 {[%clk 0:00:52]}  e5 {[%clk 0:01:07]} 20. Nde2 {[%clk 0:00:51]}  Nxe4 {[%clk 0:01:00]} 21. Nd5 {[%clk 0:00:51]}  Bd8 {[%clk 0:00:59]} 22. c3 {[%clk 0:00:48]}  Bb7 {[%clk 0:00:46]} 23. Rad1 {[%clk 0:00:45]}  Bxd5 {[%clk 0:00:35]} 24. Rxd5 {[%clk 0:00:46]}  Bc7 {[%clk 0:00:34]} 25. h3 {[%clk 0:00:42]}  Nf6 {[%clk 0:00:33]} 26. Rdd1 {[%clk 0:00:37]}  d5 {[%clk 0:00:33]} 27. g4 {[%clk 0:00:37]}  h6 {[%clk 0:00:32]} 28. Bc5 {[%clk 0:00:36]}  Re8 {[%clk 0:00:28]} 29. b3 {[%clk 0:00:35]}  Re4 {[%clk 0:00:27]} 30. Ng3 {[%clk 0:00:35]}  Rf4 {[%clk 0:00:26]} 31. Kg2 {[%clk 0:00:29]}  a5 {[%clk 0:00:14]} 32. bxa5 {[%clk 0:00:27]}  Bxa5 {[%clk 0:00:15]} 33. Ne2 {[%clk 0:00:26]}  Re4 {[%clk 0:00:14]} 34. Kf3 {[%clk 0:00:25]}  b4 {[%clk 0:00:09]} 35. Ra1 {[%clk 0:00:20]}  Bc7 {[%clk 0:00:05]} 36. cxb4 {[%clk 0:00:21]}  d4 {[%clk 0:00:05]} 37. Ng3 {[%clk 0:00:13]}  Re3+ {[%clk 0:00:05]} 38. Kf2 {[%clk 0:00:14]}  e4 {[%clk 0:00:05]} 39. Ne2 {[%clk 0:00:13]}  Rf3+ {[%clk 0:00:05]} 40. Kg2 {[%clk 0:00:13]}  d3 {[%clk 0:00:05]} 41. Nc3 {[%clk 0:00:09]}  Rg3+ {[%clk 0:00:05]} 42. Kf2 {[%clk 0:00:09]}  d2 {[%clk 0:00:05]} 43. Ke2 {[%clk 0:00:09]}  Rxc3 {[%clk 0:00:05]} 44. Kxd2 {[%clk 0:00:06]}  Nd5 {[%clk 0:00:05]} 45. Ra7 {[%clk 0:00:07]}  e3+ {[%clk 0:00:05]} 46. Ke2 {[%clk 0:00:07]}  Rc2+ {[%clk 0:00:05]} 47. Kd3 {[%clk 0:00:08]}  Rd2+ {[%clk 0:00:05]} 48. Kc4 {[%clk 0:00:09]}  e2 {[%clk 0:00:06]} 49. Re1 {[%clk 0:00:09]}  Rd1 {[%clk 0:00:06]} 50. Rxe2 {[%clk 0:00:09]}  Rxe2 {[%clk 0:00:07]} 51. Ra8+ {[%clk 0:00:09]}  Kh7 {[%clk 0:00:07]} 52. Rf8 {[%clk 0:00:09]}  Bd6 {[%clk 0:00:06]} 53. Rxf7 {[%clk 0:00:09]}  Rc2+ {[%clk 0:00:05]} 54. Kb5 {[%clk 0:00:10]}  Bxc5 {[%clk 0:00:04]} 55. bxc5 {[%clk 0:00:11]}  Nc3+ {[%clk 0:00:05]} 56. Kb6 {[%clk 0:00:10]}  Ne4 {[%clk 0:00:06]} 57. c6 {[%clk 0:00:10]}  Rd6 {[%clk 0:00:06]} 58. Rc7 {[%clk 0:00:10]}  Nc3 {[%clk 0:00:06]} 59. Kc5 {[%clk 0:00:08]}  Nd5+ {[%clk 0:00:05]} 60. Kxd6 {[%clk 0:00:08]}  Nxc7 {[%clk 0:00:06]} 61. Kxc7 {[%clk 0:00:09]}  Rb2 {[%clk 0:00:05]} 62. Kd7 {[%clk 0:00:09]}  Rxb3 {[%clk 0:00:06]} 63. c7 {[%clk 0:00:10]}  Rd3+ {[%clk 0:00:05]} 64. Ke7 {[%clk 0:00:10]}  Rc3 {[%clk 0:00:06]} 65. Kd8 {[%clk 0:00:10]}  Rd3+ {[%clk 0:00:06]} 66. Ke7 {[%clk 0:00:11]}  Rc3 {[%clk 0:00:07]} 67. Kd7 {[%clk 0:00:11]}  Rd3+ {[%clk 0:00:07]} 68. Kc6 {[%clk 0:00:12]}  Rxh3 {[%clk 0:00:06]} 69. c8=Q {[%clk 0:00:10]}  Rc3+ {[%clk 0:00:06]} 70. Kd7 {[%clk 0:00:10]}  Rxc8 {[%clk 0:00:07]} 71. Kxc8 {[%clk 0:00:11]}  h5 {[%clk 0:00:06]} 72. gxh5 {[%clk 0:00:12]}  Kh6 {[%clk 0:00:06]} 73. Kd7 {[%clk 0:00:13]}  Kxh5 {[%clk 0:00:05]} 74. Ke6 {[%clk 0:00:13]}  Kg5 {[%clk 0:00:06]} 75. Kf7 {[%clk 0:00:13]}  Kxf5 {[%clk 0:00:07]} 76. Kxg7 {[%clk 0:00:12]} 1/2-1/2


[Site "https://www.chess.com"]

[Event "Titled Tuesday Blitz April 4 Late 2023"]
[White "Han, Yichen"]
[Black "Rustemov, Alexander"]
[WhiteFideId "1054430"]
[BlackFideId "4119002"]
[WhiteElo "2342"]
[BlackElo "2845"]
[Result "0-1"]
[Round "04"]
[TimeControl "180+2"]
[Date "2023.04.04"]
[WhiteClock "0:00:14"]
[BlackClock "0:00:57"]

1. d4 {[%clk 0:02:57]}  g6 {[%clk 0:02:59]} 2. e4 {[%clk 0:02:56]}  Bg7 {[%clk 0:02:59]} 3. Nc3 {[%clk 0:02:57]}  c5 {[%clk 0:02:58]} 4. dxc5 {[%clk 0:02:57]}  Bxc3+ {[%clk 0:02:51]} 5. bxc3 {[%clk 0:02:57]}  Qa5 {[%clk 0:02:51]} 6. Qd4 {[%clk 0:02:57]}  Nf6 {[%clk 0:02:50]} 7. Qb4 {[%clk 0:02:52]}  Qc7 {[%clk 0:02:49]} 8. Bd3 {[%clk 0:02:46]}  Nc6 {[%clk 0:02:49]} 9. Qb2 {[%clk 0:02:46]}  Ne5 {[%clk 0:02:42]} 10. Be3 {[%clk 0:02:44]}  O-O {[%clk 0:02:36]} 11. Nf3 {[%clk 0:02:43]}  Nxf3+ {[%clk 0:02:28]} 12. gxf3 {[%clk 0:02:44]}  Nh5 {[%clk 0:02:23]} 13. O-O-O {[%clk 0:02:37]}  b6 {[%clk 0:02:20]} 14. cxb6 {[%clk 0:02:29]}  axb6 {[%clk 0:02:20]} 15. Bxb6 {[%clk 0:02:28]}  Qf4+ {[%clk 0:02:16]} 16. Be3 {[%clk 0:02:26]}  Qxf3 {[%clk 0:02:17]} 17. c4 {[%clk 0:02:23]}  d6 {[%clk 0:02:10]} 18. Rde1 {[%clk 0:02:14]}  Be6 {[%clk 0:02:08]} 19. Be2 {[%clk 0:02:13]}  Qh3 {[%clk 0:02:04]} 20. Rhg1 {[%clk 0:01:37]}  Rfb8 {[%clk 0:02:03]} 21. Qa1 {[%clk 0:01:37]}  Nf6 {[%clk 0:01:55]} 22. Rg3 {[%clk 0:01:24]}  Qh4 {[%clk 0:01:50]} 23. f3 {[%clk 0:00:58]}  Qxh2 {[%clk 0:01:47]} 24. Rgg1 {[%clk 0:00:52]}  Ra3 {[%clk 0:01:43]} 25. Bg5 {[%clk 0:00:43]}  Rba8 {[%clk 0:01:32]} 26. Rh1 {[%clk 0:00:33]}  Qf2 {[%clk 0:01:18]} 27. Kb1 {[%clk 0:00:17]}  Rxa2 {[%clk 0:01:04]} 28. Qxa2 {[%clk 0:00:17]}  Rxa2 {[%clk 0:01:04]} 29. Kxa2 {[%clk 0:00:17]}  Qc5 {[%clk 0:00:58]} 30. Kb3 {[%clk 0:00:14]}  Qxg5 {[%clk 0:00:57]} 0-1


[Site "https://www.chess.com"]

[Event "Titled Tuesday Blitz April 4 Late 2023"]
[White "Yeletsky, Ivan"]
[Black "Suder, Jakub"]
[WhiteFideId "24180327"]
[BlackFideId "1195310"]
[WhiteElo "2422"]
[BlackElo "2287"]
[Result "1-0"]
[Round "04"]
[TimeControl "180+2"]
[Date "2023.04.04"]
[WhiteClock "0:00:51"]
[BlackClock "0:00:58"]

1. Nf3 {[%clk 0:03:00]}  d5 {[%clk 0:02:59]} 2. g3 {[%clk 0:03:01]}  Nf6 {[%clk 0:02:59]} 3. Bg2 {[%clk 0:03:01]}  e6 {[%clk 0:03:00]} 4. b3 {[%clk 0:03:01]}  Be7 {[%clk 0:02:59]} 5. Bb2 {[%clk 0:03:02]}  O-O {[%clk 0:02:59]} 6. O-O {[%clk 0:03:03]}  a5 {[%clk 0:02:51]} 7. Nc3 {[%clk 0:03:02]}  Nbd7 {[%clk 0:02:48]} 8. e3 {[%clk 0:02:58]}  Nb6 {[%clk 0:02:47]} 9. Qe2 {[%clk 0:02:44]}  a4 {[%clk 0:02:45]} 10. Rae1 {[%clk 0:02:42]}  axb3 {[%clk 0:02:43]} 11. axb3 {[%clk 0:02:43]}  Ba3 {[%clk 0:02:23]} 12. Ba1 {[%clk 0:02:42]}  Bd7 {[%clk 0:02:12]} 13. Ne5 {[%clk 0:02:41]}  Bd6 {[%clk 0:02:11]} 14. f4 {[%clk 0:02:41]}  Be8 {[%clk 0:02:07]} 15. g4 {[%clk 0:02:41]}  Nfd7 {[%clk 0:02:07]} 16. Nb5 {[%clk 0:02:38]}  Nxe5 {[%clk 0:02:04]} 17. Nxd6 {[%clk 0:02:33]}  cxd6 {[%clk 0:02:03]} 18. fxe5 {[%clk 0:02:33]}  dxe5 {[%clk 0:02:00]} 19. Bxe5 {[%clk 0:02:34]}  f6 {[%clk 0:01:59]} 20. Bc3 {[%clk 0:02:34]}  Qd6 {[%clk 0:01:51]} 21. g5 {[%clk 0:02:15]}  e5 {[%clk 0:01:47]} 22. gxf6 {[%clk 0:02:15]}  gxf6 {[%clk 0:01:48]} 23. Kh1 {[%clk 0:02:11]}  Kh8 {[%clk 0:01:48]} 24. d4 {[%clk 0:01:49]}  e4 {[%clk 0:01:41]} 25. Qd2 {[%clk 0:01:44]}  Rg8 {[%clk 0:01:39]} 26. Bb4 {[%clk 0:01:44]}  Qe6 {[%clk 0:01:39]} 27. Qf2 {[%clk 0:01:44]}  Nd7 {[%clk 0:01:38]} 28. Re2 {[%clk 0:01:43]}  Bh5 {[%clk 0:01:37]} 29. Rd2 {[%clk 0:01:43]}  Bg4 {[%clk 0:01:20]} 30. Qh4 {[%clk 0:01:42]}  Rg6 {[%clk 0:01:17]} 31. h3 {[%clk 0:01:37]}  f5 {[%clk 0:01:14]} 32. Qe7 {[%clk 0:01:29]}  Qxe7 {[%clk 0:01:08]} 33. Bxe7 {[%clk 0:01:30]}  Rh6 {[%clk 0:01:08]} 34. Kh2 {[%clk 0:01:30]}  Re8 {[%clk 0:01:05]} 35. Bg5 {[%clk 0:01:30]}  Rh5 {[%clk 0:01:04]} 36. Bf4 {[%clk 0:01:30]}  Nf6 {[%clk 0:01:03]} 37. Be5 {[%clk 0:01:21]}  Kg7 {[%clk 0:01:01]} 38. Kg1 {[%clk 0:01:17]}  Bxh3 {[%clk 0:01:01]} 39. Bxh3 {[%clk 0:01:18]}  Rxh3 {[%clk 0:01:00]} 40. Rxf5 {[%clk 0:01:18]}  Re6 {[%clk 0:01:00]} 41. Rdf2 {[%clk 0:01:13]}  Rh6 {[%clk 0:01:00]} 42. Bxf6+ {[%clk 0:01:07]}  Rhxf6 {[%clk 0:01:00]} 43. Rxd5 {[%clk 0:01:06]}  Rxf2 {[%clk 0:01:00]} 44. Kxf2 {[%clk 0:01:07]}  Rf6+ {[%clk 0:00:58]} 45. Ke2 {[%clk 0:01:06]}  Rh6 {[%clk 0:00:58]} 46. Rd7+ {[%clk 0:01:05]}  Kf6 {[%clk 0:00:58]} 47. Rd6+ {[%clk 0:00:51]} 1-0


[Site "https://www.chess.com"]

[Event "Titled Tuesday Blitz April 4 Late 2023"]
[White "Andrej2004"]
[Black "Baskakov, Egor"]
[BlackFideId "24197866"]
[WhiteElo "2557"]
[BlackElo "2212"]
[Result "0-1"]
[Round "04"]
[TimeControl "180+2"]
[Date "2023.04.04"]
[WhiteClock "0:00:19"]
[BlackClock "0:00:36"]

1. Nf3 {[%clk 0:02:59]}  Nf6 {[%clk 0:02:59]} 2. g3 {[%clk 0:02:59]}  e6 {[%clk 0:03:00]} 3. Bg2 {[%clk 0:03:00]}  d5 {[%clk 0:03:01]} 4. O-O {[%clk 0:03:00]}  Be7 {[%clk 0:03:02]} 5. d3 {[%clk 0:03:00]}  O-O {[%clk 0:03:01]} 6. b3 {[%clk 0:03:01]}  d4 {[%clk 0:03:02]} 7. Bb2 {[%clk 0:03:00]}  c5 {[%clk 0:03:03]} 8. e3 {[%clk 0:02:59]}  dxe3 {[%clk 0:03:02]} 9. fxe3 {[%clk 0:02:59]}  Nc6 {[%clk 0:03:03]} 10. Nbd2 {[%clk 0:02:59]}  Nd5 {[%clk 0:03:02]} 11. Qe2 {[%clk 0:02:58]}  Bf6 {[%clk 0:02:54]} 12. Bxf6 {[%clk 0:02:49]}  Nxf6 {[%clk 0:02:55]} 13. Nc4 {[%clk 0:02:48]}  Rb8 {[%clk 0:02:49]} 14. Nfe5 {[%clk 0:02:45]}  Nxe5 {[%clk 0:02:48]} 15. Nxe5 {[%clk 0:02:46]}  Nd7 {[%clk 0:02:47]} 16. Nf3 {[%clk 0:02:38]}  b6 {[%clk 0:02:46]} 17. Rad1 {[%clk 0:02:37]}  Bb7 {[%clk 0:02:46]} 18. d4 {[%clk 0:02:38]}  Qc7 {[%clk 0:02:46]} 19. c4 {[%clk 0:02:37]}  Rbe8 {[%clk 0:02:41]} 20. Qd3 {[%clk 0:02:19]}  h6 {[%clk 0:02:39]} 21. dxc5 {[%clk 0:01:55]}  Nxc5 {[%clk 0:02:36]} 22. Qd6 {[%clk 0:01:55]}  Qc8 {[%clk 0:02:36]} 23. Qf4 {[%clk 0:01:46]}  e5 {[%clk 0:02:12]} 24. Nxe5 {[%clk 0:01:28]}  Bxg2 {[%clk 0:02:13]} 25. Kxg2 {[%clk 0:01:28]}  f6 {[%clk 0:01:46]} 26. Nd3 {[%clk 0:01:10]}  Ne4 {[%clk 0:01:29]} 27. Nb4 {[%clk 0:01:07]}  Nc3 {[%clk 0:01:23]} 28. Rd2 {[%clk 0:01:04]}  Re5 {[%clk 0:01:17]} 29. Nd5 {[%clk 0:01:01]}  Nxd5 {[%clk 0:01:13]} 30. Rxd5 {[%clk 0:00:57]}  Rfe8 {[%clk 0:01:12]} 31. Rxe5 {[%clk 0:00:55]}  Rxe5 {[%clk 0:01:13]} 32. Rd1 {[%clk 0:00:54]}  Qe6 {[%clk 0:01:05]} 33. Rd3 {[%clk 0:00:49]}  Re4 {[%clk 0:01:00]} 34. Qf3 {[%clk 0:00:28]}  Re5 {[%clk 0:00:52]} 35. Qf4 {[%clk 0:00:22]}  a6 {[%clk 0:00:43]} 36. Qd4 {[%clk 0:00:22]}  b5 {[%clk 0:00:40]} 37. Qd6 {[%clk 0:00:19]}  Qf5 {[%clk 0:00:39]} 38. Qd8+ {[%clk 0:00:19]}  Kh7 {[%clk 0:00:39]} 39. Qd4 {[%clk 0:00:19]}  Re4 {[%clk 0:00:34]} 40. Qd5 {[%clk 0:00:19]}  Qg4 {[%clk 0:00:34]} 41. Qd4 {[%clk 0:00:18]}  Qe2+ {[%clk 0:00:33]} 42. Kh3 {[%clk 0:00:18]}  Qh5+ {[%clk 0:00:33]} 43. Kg2 {[%clk 0:00:18]}  Rxd4 {[%clk 0:00:34]} 44. Rxd4 {[%clk 0:00:19]}  bxc4 {[%clk 0:00:34]} 45. Rxc4 {[%clk 0:00:19]}  Qe2+ {[%clk 0:00:35]} 46. Kh3 {[%clk 0:00:19]}  Qxa2 {[%clk 0:00:36]} 0-1


[Site "https://www.chess.com"]

[Event "Titled Tuesday Blitz April 4 Late 2023"]
[White "Perez Ponsa, Federico"]
[Black "Poltorak, Sebastian"]
[WhiteFideId "117927"]
[BlackFideId "1199498"]
[WhiteElo "2590"]
[BlackElo "2195"]
[Result "0-1"]
[Round "04"]
[TimeControl "180+2"]
[Date "2023.04.04"]
[WhiteClock "0:00:04"]
[BlackClock "0:00:04"]

1. e4 {[%clk 0:03:00]}  c6 {[%clk 0:02:58]} 2. d4 {[%clk 0:03:00]}  d5 {[%clk 0:02:59]} 3. e5 {[%clk 0:03:00]}  Bf5 {[%clk 0:02:57]} 4. h4 {[%clk 0:03:00]}  h5 {[%clk 0:02:55]} 5. Bd3 {[%clk 0:03:00]}  Bxd3 {[%clk 0:02:54]} 6. Qxd3 {[%clk 0:03:00]}  e6 {[%clk 0:02:52]} 7. Nf3 {[%clk 0:03:00]}  Nh6 {[%clk 0:02:48]} 8. Bxh6 {[%clk 0:02:56]}  Rxh6 {[%clk 0:02:48]} 9. c4 {[%clk 0:02:57]}  dxc4 {[%clk 0:02:36]} 10. Qxc4 {[%clk 0:02:58]}  Qa5+ {[%clk 0:02:32]} 11. Nc3 {[%clk 0:02:55]}  Qb4 {[%clk 0:02:32]} 12. Qe2 {[%clk 0:02:55]}  Nd7 {[%clk 0:02:20]} 13. O-O {[%clk 0:02:44]}  Nb6 {[%clk 0:02:12]} 14. Ne4 {[%clk 0:02:35]}  Rd8 {[%clk 0:02:00]} 15. Rfd1 {[%clk 0:02:22]}  Be7 {[%clk 0:01:42]} 16. g3 {[%clk 0:02:17]}  Qc4 {[%clk 0:01:32]} 17. Qe1 {[%clk 0:02:11]}  Kf8 {[%clk 0:01:08]} 18. b3 {[%clk 0:02:09]}  Qb4 {[%clk 0:01:07]} 19. Qe2 {[%clk 0:01:57]}  a6 {[%clk 0:01:04]} 20. Kg2 {[%clk 0:01:54]}  Qb5 {[%clk 0:01:02]} 21. Qc2 {[%clk 0:01:20]}  Rg6 {[%clk 0:00:50]} 22. Rac1 {[%clk 0:01:07]}  Qd5 {[%clk 0:00:38]} 23. Nc3 {[%clk 0:00:43]}  Qd7 {[%clk 0:00:37]} 24. Ne2 {[%clk 0:00:42]}  Ba3 {[%clk 0:00:36]} 25. Nf4 {[%clk 0:00:40]}  Rh6 {[%clk 0:00:33]} 26. Rb1 {[%clk 0:00:39]}  Nd5 {[%clk 0:00:34]} 27. Nh3 {[%clk 0:00:31]}  Be7 {[%clk 0:00:32]} 28. Nhg5 {[%clk 0:00:23]}  Rg6 {[%clk 0:00:31]} 29. Rdc1 {[%clk 0:00:15]}  Nb4 {[%clk 0:00:31]} 30. Qe2 {[%clk 0:00:15]}  a5 {[%clk 0:00:27]} 31. a3 {[%clk 0:00:14]}  Na6 {[%clk 0:00:27]} 32. a4 {[%clk 0:00:13]}  Qd5 {[%clk 0:00:26]} 33. Qe4 {[%clk 0:00:07]}  Bxg5 {[%clk 0:00:22]} 34. Qxd5 {[%clk 0:00:04]}  Rxd5 {[%clk 0:00:22]} 35. hxg5 {[%clk 0:00:05]}  f6 {[%clk 0:00:16]} 36. gxf6 {[%clk 0:00:02]}  gxf6 {[%clk 0:00:16]} 37. exf6 {[%clk 0:00:03]}  Rxf6 {[%clk 0:00:15]} 38. Rh1 {[%clk 0:00:04]}  Rdf5 {[%clk 0:00:15]} 39. Nh4 {[%clk 0:00:02]}  Rxf2+ {[%clk 0:00:15]} 40. Kh3 {[%clk 0:00:03]}  Nb4 {[%clk 0:00:13]} 41. Rbe1 {[%clk 0:00:03]}  Nd5 {[%clk 0:00:11]} 42. Re5 {[%clk 0:00:04]}  Rb2 {[%clk 0:00:08]} 43. Rxh5 {[%clk 0:00:03]}  Rxb3 {[%clk 0:00:08]} 44. Kg4 {[%clk 0:00:02]}  Ne3+ {[%clk 0:00:07]} 45. Kg5 {[%clk 0:00:02]}  Rf7 {[%clk 0:00:07]} 46. Rh8+ {[%clk 0:00:01]}  Ke7 {[%clk 0:00:07]} 47. Ng6+ {[%clk 0:00:02]}  Kd6 {[%clk 0:00:07]} 48. Rd8+ {[%clk 0:00:02]}  Kc7 {[%clk 0:00:07]} 49. Rhh8 {[%clk 0:00:03]}  Rf5+ {[%clk 0:00:06]} 50. Kh6 {[%clk 0:00:04]}  Nd5 {[%clk 0:00:06]} 51. Rc8+ {[%clk 0:00:03]}  Kb6 {[%clk 0:00:06]} 52. Ne5 {[%clk 0:00:03]}  Nf6 {[%clk 0:00:04]} 53. Kg6 {[%clk 0:00:03]}  Rxg3+ {[%clk 0:00:05]} 54. Kf7 {[%clk 0:00:04]}  Nd5+ {[%clk 0:00:03]} 55. Kxe6 {[%clk 0:00:05]}  Rf6+ {[%clk 0:00:03]} 56. Kd7 {[%clk 0:00:05]}  Rg7+ {[%clk 0:00:04]} 57. Ke8 {[%clk 0:00:06]}  Re7+ {[%clk 0:00:02]} 58. Kd8 {[%clk 0:00:06]}  Rd6+ {[%clk 0:00:03]} 59. Nd7+ {[%clk 0:00:04]}  Rdxd7# {[%clk 0:00:04]} 0-1


[Site "https://www.chess.com"]

[Event "Titled Tuesday Blitz April 4 Late 2023"]
[White "Ortega Amarelle, Mariano"]
[Black "Timmermans, Mark"]
[WhiteFideId "3504301"]
[BlackFideId "1026399"]
[WhiteElo "2406"]
[BlackElo "2460"]
[Result "0-1"]
[Round "04"]
[TimeControl "180+2"]
[Date "2023.04.04"]
[WhiteClock "0:00:01"]
[BlackClock "0:00:07"]

1. e4 {[%clk 0:03:00]}  e5 {[%clk 0:02:59]} 2. Nf3 {[%clk 0:03:00]}  Nc6 {[%clk 0:03:00]} 3. Bb5 {[%clk 0:02:55]}  f5 {[%clk 0:03:00]} 4. d3 {[%clk 0:02:52]}  fxe4 {[%clk 0:03:00]} 5. dxe4 {[%clk 0:02:53]}  Nf6 {[%clk 0:03:01]} 6. Nc3 {[%clk 0:02:53]}  Bb4 {[%clk 0:03:02]} 7. Qd3 {[%clk 0:02:53]}  Bxc3+ {[%clk 0:03:03]} 8. bxc3 {[%clk 0:02:52]}  d6 {[%clk 0:03:03]} 9. O-O {[%clk 0:02:40]}  O-O {[%clk 0:03:03]} 10. Bxc6 {[%clk 0:02:16]}  bxc6 {[%clk 0:03:04]} 11. Qc4+ {[%clk 0:02:16]}  Kh8 {[%clk 0:03:05]} 12. Qxc6 {[%clk 0:02:17]}  Rb8 {[%clk 0:02:59]} 13. Nd2 {[%clk 0:02:14]}  Rb6 {[%clk 0:02:58]} 14. Qa4 {[%clk 0:02:14]}  Ba6 {[%clk 0:02:36]} 15. Re1 {[%clk 0:02:12]}  Ng4 {[%clk 0:02:34]} 16. Nf3 {[%clk 0:01:43]}  h6 {[%clk 0:02:09]} 17. Be3 {[%clk 0:01:37]}  Bb5 {[%clk 0:01:47]} 18. Qxa7 {[%clk 0:01:30]}  Ra6 {[%clk 0:00:48]} 19. Qb7 {[%clk 0:01:30]}  c6 {[%clk 0:00:48]} 20. a4 {[%clk 0:01:17]}  Nxe3 {[%clk 0:00:42]} 21. axb5 {[%clk 0:01:10]}  Rb6 {[%clk 0:00:40]} 22. Qa7 {[%clk 0:01:02]}  Nxc2 {[%clk 0:00:32]} 23. bxc6 {[%clk 0:01:02]}  Nxe1 {[%clk 0:00:30]} 24. Nxe1 {[%clk 0:00:40]}  Rxc6 {[%clk 0:00:30]} 25. Nd3 {[%clk 0:00:35]}  Rxc3 {[%clk 0:00:30]} 26. Nb4 {[%clk 0:00:34]}  Qh4 {[%clk 0:00:26]} 27. Rf1 {[%clk 0:00:27]}  Qxe4 {[%clk 0:00:24]} 28. Qe7 {[%clk 0:00:27]}  Rb8 {[%clk 0:00:21]} 29. Na6 {[%clk 0:00:26]}  Qb7 {[%clk 0:00:10]} 30. Qxd6 {[%clk 0:00:20]}  Ra8 {[%clk 0:00:11]} 31. Nc5 {[%clk 0:00:17]}  Qb5 {[%clk 0:00:11]} 32. Ne4 {[%clk 0:00:14]}  Rc2 {[%clk 0:00:10]} 33. g3 {[%clk 0:00:12]}  Qe2 {[%clk 0:00:08]} 34. Qd5 {[%clk 0:00:10]}  Rf8 {[%clk 0:00:08]} 35. Qd6 {[%clk 0:00:07]}  Kg8 {[%clk 0:00:06]} 36. Qe6+ {[%clk 0:00:06]}  Kh8 {[%clk 0:00:06]} 37. Qxe5 {[%clk 0:00:06]}  Rc4 {[%clk 0:00:05]} 38. f3 {[%clk 0:00:05]}  Qe3+ {[%clk 0:00:04]} 39. Kg2 {[%clk 0:00:04]}  Rc2+ {[%clk 0:00:04]} 40. Kh3 {[%clk 0:00:04]}  Qe2 {[%clk 0:00:04]} 41. Rf2 {[%clk 0:00:04]}  Qc4 {[%clk 0:00:03]} 42. Rxc2 {[%clk 0:00:04]}  Qxc2 {[%clk 0:00:04]} 43. Qe7 {[%clk 0:00:03]}  Qc8+ {[%clk 0:00:05]} 44. Kg2 {[%clk 0:00:03]}  Qf5 {[%clk 0:00:06]} 45. Nd2 {[%clk 0:00:01]}  Rf7 {[%clk 0:00:06]} 46. Qe8+ {[%clk 0:00:01]}  Kh7 {[%clk 0:00:06]} 47. Qe4 {[%clk 0:00:02]}  g6 {[%clk 0:00:06]} 48. Qxf5 {[%clk 0:00:01]}  gxf5 {[%clk 0:00:07]} 49. h4 {[%clk 0:00:02]}  Re7 {[%clk 0:00:07]} 50. Nc4 {[%clk 0:00:02]}  Kg6 {[%clk 0:00:07]} 51. g4 {[%clk 0:00:02]}  fxg4 {[%clk 0:00:06]} 52. fxg4 {[%clk 0:00:01]}  Re4 {[%clk 0:00:07]} 0-1


[Site "https://www.chess.com"]

[Event "Titled Tuesday Blitz April 4 Late 2023"]
[White "Pakleza, Zbigniew"]
[Black "Loiacono, Antonio"]
[WhiteFideId "1119290"]
[BlackFideId "895415"]
[WhiteElo "2410"]
[BlackElo "2257"]
[Result "0-1"]
[Round "04"]
[TimeControl "180+2"]
[Date "2023.04.04"]
[WhiteClock "0:00:07"]
[BlackClock "0:00:26"]

1. a3 {[%clk 0:02:59]}  e5 {[%clk 0:02:58]} 2. d3 {[%clk 0:02:58]}  d5 {[%clk 0:02:57]} 3. Nf3 {[%clk 0:02:59]}  Nc6 {[%clk 0:02:57]} 4. c3 {[%clk 0:02:57]}  g6 {[%clk 0:02:56]} 5. b4 {[%clk 0:02:55]}  a6 {[%clk 0:02:56]} 6. e4 {[%clk 0:02:54]}  dxe4 {[%clk 0:02:44]} 7. dxe4 {[%clk 0:02:55]}  Qxd1+ {[%clk 0:02:43]} 8. Kxd1 {[%clk 0:02:56]}  Be6 {[%clk 0:02:42]} 9. Kc2 {[%clk 0:02:53]}  f6 {[%clk 0:02:42]} 10. Nbd2 {[%clk 0:02:53]}  Nge7 {[%clk 0:02:36]} 11. Bc4 {[%clk 0:02:52]}  Kf7 {[%clk 0:02:36]} 12. Bxe6+ {[%clk 0:02:47]}  Kxe6 {[%clk 0:02:36]} 13. Nc4 {[%clk 0:02:48]}  Nc8 {[%clk 0:02:36]} 14. Nfd2 {[%clk 0:02:41]}  Nd6 {[%clk 0:02:32]} 15. f3 {[%clk 0:02:37]}  Bh6 {[%clk 0:02:31]} 16. Nxd6 {[%clk 0:02:16]}  cxd6 {[%clk 0:02:30]} 17. Nc4 {[%clk 0:02:16]}  Bxc1 {[%clk 0:02:28]} 18. Raxc1 {[%clk 0:02:17]}  b5 {[%clk 0:02:13]} 19. Nb6 {[%clk 0:02:03]}  Rab8 {[%clk 0:02:12]} 20. Nd5 {[%clk 0:02:03]}  Ne7 {[%clk 0:02:09]} 21. Rhd1 {[%clk 0:01:53]}  Nxd5 {[%clk 0:02:08]} 22. Rxd5 {[%clk 0:01:54]}  Rhc8 {[%clk 0:02:07]} 23. Kb3 {[%clk 0:01:42]}  Rc4 {[%clk 0:01:50]} 24. Rcd1 {[%clk 0:01:29]}  Rc6 {[%clk 0:01:49]} 25. R5d3 {[%clk 0:01:20]}  Rbc8 {[%clk 0:01:44]} 26. Ra1 {[%clk 0:01:17]}  f5 {[%clk 0:01:43]} 27. exf5+ {[%clk 0:01:14]}  gxf5 {[%clk 0:01:41]} 28. a4 {[%clk 0:01:15]}  d5 {[%clk 0:01:37]} 29. axb5 {[%clk 0:01:15]}  axb5 {[%clk 0:01:36]} 30. Ra5 {[%clk 0:01:15]}  Rb6 {[%clk 0:01:30]} 31. Ra7 {[%clk 0:01:09]}  e4 {[%clk 0:01:14]} 32. fxe4 {[%clk 0:01:10]}  dxe4 {[%clk 0:01:12]} 33. Rh3 {[%clk 0:01:08]}  Ke5 {[%clk 0:01:11]} 34. Raxh7 {[%clk 0:00:56]}  Rg6 {[%clk 0:01:00]} 35. Rb7 {[%clk 0:00:34]}  Rxg2 {[%clk 0:00:57]} 36. Rxb5+ {[%clk 0:00:35]}  Kf4 {[%clk 0:00:57]} 37. Rh4+ {[%clk 0:00:30]}  Rg4 {[%clk 0:00:56]} 38. Rh7 {[%clk 0:00:25]}  Re8 {[%clk 0:00:50]} 39. Rbb7 {[%clk 0:00:13]}  e3 {[%clk 0:00:45]} 40. Rbe7 {[%clk 0:00:13]}  Rxe7 {[%clk 0:00:35]} 41. Rxe7 {[%clk 0:00:14]}  Kf3 {[%clk 0:00:36]} 42. b5 {[%clk 0:00:13]}  Re4 {[%clk 0:00:30]} 43. Ra7 {[%clk 0:00:04]}  e2 {[%clk 0:00:29]} 44. Ra1 {[%clk 0:00:05]}  e1=Q {[%clk 0:00:27]} 45. Rxe1 {[%clk 0:00:06]}  Rxe1 {[%clk 0:00:27]} 46. c4 {[%clk 0:00:07]}  Ke4 {[%clk 0:00:27]} 47. c5 {[%clk 0:00:07]}  Kd5 {[%clk 0:00:27]} 48. c6 {[%clk 0:00:07]}  Kd6 {[%clk 0:00:26]} 0-1


[Site "https://www.chess.com"]